bitfinex/quotes_ETHUSD_20251004
["timestamp","ask_amount","ask_price","bid_price","bid_amount"]
[1759620953975,14.75218457,4486.2,4486.1,0.001]
[1759620957777,14.29888457,4486.2,4486.1,0.001]
[1759620961907,14.89867314,4486.2,4486.1,0.4414]
[1759620962583,0.6336,4486.0,4485.6,0.001]
[1759620962775,0.1112,4485.7,4485.6,0.001]
[1759620962974,4.84950646,4485.7,4485.6,0.001]
[1759620963216,5.3281391,4485.7,4485.6,0.001]
[1759620963387,5.41736874,4485.7,4485.6,0.001]
[1759620963908,2.90836874,4485.7,4485.6,0.001]
[1759620964115,5.5723361,4485.7,4485.6,0.001]
[1759620964583,5.5723361,4485.7,4485.6,0.2509]
[1759620966487,9.8023361,4485.7,4485.6,0.2509]
[1759620968213,9.8023361,4485.7,4485.6,0.001]
[1759620968717,10.28203457,4485.7,4485.6,0.001]
[1759620985122,9.8023361,4485.7,4485.6,0.001]
[1759620997146,10.28204084,4485.7,4485.6,0.001]
[1759621004754,9.8023361,4485.7,4485.6,0.001]
[1759621006452,10.2455361,4485.7,4485.6,0.001]
[1759621008774,9.8023361,4485.7,4485.6,0.001]
[1759621010383,7.2933361,4485.7,4485.6,0.001]
[1759621010563,9.8023361,4485.7,4485.6,0.001]
[1759621011062,4.43042964,4485.7,4485.6,0.001]
[1759621011371,6.6597361,4485.7,4485.6,0.001]
[1759621014178,6.6597361,4485.7,4485.6,0.2509]
[1759621015253,6.6597361,4485.7,4485.6,0.001]
[1759621018222,2.4297361,4485.7,4485.6,0.001]
[1759621018758,0.08922964,4485.7,4485.6,0.001]
[1759621022250,0.08922964,4485.7,4485.6,0.2509]
[1759621023669,2.3185361,4485.7,4485.6,0.001]
[1759621031805,0.08922964,4485.7,4485.6,0.001]
[1759621033000,2.3185361,4485.7,4485.6,0.001]
[1759621039789,2.7694361,4485.7,4485.6,0.001]
[1759621040384,3.2693033,4485.7,4485.6,0.001]
[1759621047116,3.9029033,4485.7,4485.6,0.001]
[1759621050295,6.4119033,4485.7,4485.6,0.001]
[1759621052724,8.1329033,4485.7,4485.6,0.001]
[1759621052916,10.6419033,4485.7,4485.6,0.001]
[1759621053448,7.0484033,4485.7,4485.6,0.001]
[1759621053649,9.0575361,4485.7,4485.6,0.001]
[1759621053851,0.08922964,4485.7,4485.6,0.001]
[1759621056259,0.08922964,4485.7,4485.6,0.2509]
[1759621059068,0.08922964,4485.7,4485.6,0.001]
[1759621059267,0.08922964,4485.7,4485.6,0.27319356]
[1759621061665,0.08922964,4485.7,4485.6,0.02329356]
[1759621064960,0.08922964,4485.7,4485.6,2.53229356]
[1759621065158,0.08922964,4485.7,4485.6,2.82163292]
[1759621066452,0.08922964,4485.7,4485.6,2.91053936]
[1759621071802,2.3185361,4485.7,4485.6,2.91053936]
[1759621071968,0.08922964,4485.7,4485.6,2.91053936]
[1759621082080,2.3185361,4485.7,4485.6,2.91053936]
[1759621082301,2.3185361,4485.7,4485.6,2.6212]
[1759621082878,0.08922964,4485.7,4485.6,2.6212]
[1759621086084,2.3185361,4485.7,4485.6,2.6212]
[1759621089851,2.3185361,4485.7,4485.6,0.1122]
[1759621090006,2.7833361,4485.7,4485.6,0.1122]
[1759621100902,0.08922964,4485.7,4485.6,0.1122]
[1759621101106,0.08922964,4485.7,4485.6,2.68531356]
[1759621101411,0.002,4486.1,4485.6,11.81169556]
[1759621101716,0.1132,4486.0,4485.6,17.41292]
[1759621102112,0.1132,4486.0,4485.6,17.16302]
[1759621103509,0.1132,4486.0,4485.7,2.53029306]
[1759621103686,0.4538,4485.9,4485.7,2.53029306]
[1759621104319,0.002,4486.1,4485.7,2.53029306]
[1759621104477,0.4538,4485.8,4485.7,4.93029306]
[1759621104679,0.4538,4485.8,4485.7,4.908]
[1759621109208,0.4538,4485.8,4485.7,6.96907109]
[1759621109806,0.002,4486.1,4485.7,28.26124609]
[1759621110012,0.4538,4486.0,4485.8,0.02229256]
[1759621110321,0.4538,4486.0,4485.9,3.20723637]
[1759621111016,0.4538,4486.0,4485.9,3.31843637]
[1759621116119,0.4538,4486.0,4485.9,11.46803637]
[1759621116344,0.4538,4486.0,4485.9,18.46007737]
[1759621116532,0.4538,4486.0,4485.9,17.41107737]
[1759621127850,0.8884,4486.0,4485.9,7.71172737]
[1759621128042,0.8884,4486.0,4485.9,4.761491]
[1759621129821,0.8884,4486.0,4485.9,2.6192]
[1759621132881,3.11755737,4486.0,4485.9,2.6192]
[1759621133560,0.8884,4486.0,4485.9,2.6192]
[1759621133991,0.8884,4486.0,4485.9,0.1112]
[1759621134184,3.11755737,4486.0,4485.9,2.508]
[1759621141486,0.8884,4486.0,4485.9,2.508]
[1759621145433,2.68295737,4486.0,4485.9,2.508]
[1759621145933,0.4538,4486.0,4485.9,2.508]
[1759621146533,2.68295737,4486.0,4485.9,2.508]
[1759621146716,0.4538,4486.0,4485.9,2.508]
[1759621148141,2.68295737,4486.0,4485.9,2.508]
[1759621148611,0.4538,4486.0,4485.9,2.508]
[1759621149135,2.68295737,4486.0,4485.9,2.508]
[1759621149351,3.14505737,4486.0,4485.9,2.508]
[1759621157675,3.14505737,4486.0,4485.8,0.001]
[1759621157879,3.14505737,4486.0,4485.9,2.508]
[1759621158177,2.69125737,4486.0,4485.9,2.508]
[1759621158474,3.36027227,4486.0,4485.9,2.508]
[1759621159075,1.1311149,4486.0,4485.9,2.508]
[1759621159276,0.6690149,4486.0,4485.9,2.508]
[1759621170684,2.89817227,4486.0,4485.9,2.508]
[1759621171214,0.6690149,4486.0,4485.9,2.508]
[1759621171718,2.89817227,4486.0,4485.9,2.508]
[1759621175137,0.6690149,4486.0,4485.9,2.508]
[1759621177060,2.89817227,4486.0,4485.9,2.508]
[1759621179125,0.6690149,4486.0,4485.9,2.508]
[1759621186587,2.89817227,4486.0,4485.9,2.508]
[1759621188487,0.6690149,4486.0,4485.9,2.508]
[1759621190087,2.89817227,4486.0,4485.9,2.508]
[1759621190851,0.6690149,4486.0,4485.9,2.508]
[1759621192205,2.89817227,4486.0,4485.9,2.508]
[1759621194512,0.6690149,4486.0,4485.9,2.508]
[1759621195205,3.34937227,4486.0,4485.9,2.508]
[1759621200631,1.1202149,4486.0,4485.9,2.508]
[1759621200818,0.6690149,4486.0,4485.9,2.508]
[1759621202093,2.89817227,4486.0,4485.9,2.508]
[1759621202614,0.6690149,4486.0,4485.9,2.508]
[1759621205530,2.89817227,4486.0,4485.9,2.508]
[1759621206133,3.34937227,4486.0,4485.9,2.508]
[1759621206823,0.6690149,4486.0,4485.9,2.508]
[1759621209441,0.002,4486.1,4486.0,22.031733]
[1759621209638,0.002,4486.1,4486.0,32.47905737]
[1759621209939,0.002,4486.1,4486.0,34.87905737]
[1759621210238,0.002,4486.1,4486.0,49.37905737]
[1759621210430,0.002,4486.1,4486.0,50.59705535]
[1759621210624,0.002,4486.1,4486.0,51.39705535]
[1759621210937,0.002,4486.1,4486.0,50.54034035]
[1759621211641,0.002,4486.1,4486.0,51.65667635]
[1759621211833,0.002,4486.1,4486.0,49.14034035]
[1759621212742,0.002,4486.1,4486.0,51.65667635]
[1759621215750,0.002,4486.1,4486.0,21.65667635]
[1759621215953,0.002,4486.1,4486.0,51.65667635]
[1759621217530,0.002,4486.1,4486.0,51.76787635]
[1759621218826,0.002,4486.1,4486.0,21.86105924]
[1759621219163,0.002,4486.1,4486.0,51.86105924]
[1759621222858,0.002,4486.1,4486.0,51.61115924]
[1759621223969,0.002,4486.1,4486.0,21.51797635]
[1759621224175,0.002,4486.1,4486.0,51.51797635]
[1759621227973,0.002,4486.1,4486.0,51.51897635]
[1759621232411,0.002,4486.1,4486.0,21.51897635]
[1759621232609,0.002,4486.1,4486.0,51.51897635]
[1759621233395,0.002,4486.1,4486.0,21.51897635]
[1759621233598,0.002,4486.1,4486.0,51.51897635]
[1759621235199,0.002,4486.1,4486.0,54.02597635]
[1759621239871,0.002,4486.1,4486.0,54.27587635]
[1759621242584,0.002,4486.1,4486.0,54.02597635]
[1759621247709,0.002,4486.1,4486.0,24.02597635]
[1759621247914,0.002,4486.1,4486.0,54.02597635]
[1759621251812,0.002,4486.1,4486.0,24.02597635]
[1759621251975,0.002,4486.1,4486.0,54.02597635]
[1759621253914,0.002,4486.1,4486.0,24.02597635]
[1759621254112,0.002,4486.1,4486.0,54.02597635]
[1759621264329,0.002,4486.1,4486.0,24.02597635]
[1759621264502,0.002,4486.1,4486.0,54.02597635]
[1759621266326,0.002,4486.1,4486.0,24.02597635]
[1759621266491,0.002,4486.1,4486.0,54.02597635]
[1759621267331,0.002,4486.1,4486.0,24.02597635]
[1759621267624,0.002,4486.1,4486.0,54.02597635]
[1759621268024,0.002,4486.1,4486.0,50.89309942]
[1759621268198,0.4614,4486.1,4486.0,28.74429935]
[1759621268406,0.4614,4486.1,4486.0,31.44047179]
[1759621269209,0.4614,4486.1,4486.0,29.83719135]
[1759621269403,0.4614,4486.1,4486.0,32.35041656]
[1759621269721,0.4614,4486.1,4486.0,31.50110556]
[1759621270408,0.4614,4486.1,4486.0,32.59157556]
[1759621270610,0.4614,4486.1,4486.0,32.25395556]
[1759621271411,0.4614,4486.1,4486.0,39.72180656]
[1759621272536,0.4614,4486.1,4486.0,42.11694656]
[1759621272724,0.4614,4486.1,4486.0,41.79931856]
[1759621273142,0.4614,4486.1,4486.0,40.12440656]
[1759621273435,0.4614,4486.1,4486.0,43.93854256]
[1759621273632,0.4614,4486.1,4486.0,41.76188956]
[1759621273811,0.4614,4486.1,4486.0,40.46768956]
[1759621274453,0.4614,4486.1,4486.0,40.03541856]
[1759621274609,0.4614,4486.1,4486.0,41.35587656]
[1759621274809,0.4614,4486.1,4486.0,40.22815456]
[1759621275050,0.4614,4486.1,4486.0,39.98771256]
[1759621275222,0.4614,4486.1,4486.0,39.17611356]
[1759621275424,0.4614,4486.1,4486.0,37.37957556]
[1759621275625,0.4614,4486.1,4486.0,37.01694856]
[1759621276747,0.4614,4486.1,4486.0,35.30303435]
[1759621277611,0.4614,4486.1,4486.0,34.66590635]
[1759621278150,0.4614,4486.1,4486.0,34.37895035]
[1759621278824,0.4614,4486.1,4486.0,34.43622735]
[1759621279749,0.4614,4486.1,4486.0,34.40641935]
[1759621280847,0.4614,4486.1,4486.0,24.02597635]
[1759621281151,0.002,4486.1,4486.0,34.71171835]
[1759621281356,0.002,4486.1,4486.0,34.31730735]
[1759621281848,0.002,4486.1,4486.0,44.57413241]
[1759621282146,0.002,4486.1,4486.0,44.07597941]
[1759621282518,0.002,4486.1,4486.0,43.06825041]
[1759621282712,0.002,4486.1,4486.0,42.49370841]
[1759621282913,0.002,4486.1,4486.0,38.09686841]
[1759621283253,0.4529,4486.1,4486.0,37.71487741]
[1759621283910,0.4529,4486.1,4486.0,38.00854541]
[1759621284158,0.4529,4486.1,4486.0,36.93175741]
[1759621284748,0.002,4486.1,4486.0,36.93175741]
[1759621284947,0.002,4486.1,4486.0,42.41386541]
[1759621285452,0.002,4486.1,4486.0,40.81063235]
[1759621285946,0.002,4486.1,4486.0,42.95696935]
[1759621287127,0.002,4486.1,4486.0,49.09361535]
[1759621288153,0.002,4486.1,4486.0,51.02557335]
[1759621288354,0.002,4486.1,4486.0,50.75180535]
[1759621288674,0.002,4486.1,4486.0,50.21401735]
[1759621288979,0.002,4486.1,4486.0,49.21401735]
[1759621289190,0.002,4486.1,4486.0,49.42961235]
[1759621290094,0.002,4486.1,4486.0,49.42018035]
[1759621291246,0.002,4486.1,4486.0,49.30620535]
[1759621291749,0.002,4486.1,4486.0,49.08062235]
[1759621293183,0.002,4486.1,4486.0,51.29234135]
[1759621293369,0.002,4486.1,4486.0,51.07161635]
[1759621294281,0.002,4486.1,4486.0,53.14290035]
[1759621295380,0.002,4486.1,4486.0,24.02597635]
[1759621295688,0.002,4486.1,4486.0,53.37905235]
[1759621295995,0.002,4486.1,4486.0,53.60195235]
[1759621296284,0.002,4486.1,4486.0,53.37905235]
[1759621296442,0.002,4486.1,4486.0,53.39905235]
[1759621297445,0.002,4486.1,4486.0,24.02597635]
[1759621297641,0.002,4486.1,4486.0,53.39205235]
[1759621298288,0.002,4486.1,4486.0,53.16605035]
[1759621298448,0.002,4486.1,4486.0,24.02597635]
[1759621298653,0.002,4486.1,4486.0,53.16606035]
[1759621299187,0.002,4486.1,4486.0,52.93891635]
[1759621299572,0.002,4486.1,4486.0,52.96630735]
[1759621300591,0.002,4486.1,4486.0,52.91930735]
[1759621301590,0.002,4486.1,4486.0,24.02597635]
[1759621301891,0.002,4486.1,4486.0,53.15346735]
[1759621302870,0.002,4486.1,4486.0,52.90410435]
[1759621303388,0.002,4486.1,4486.0,50.94567535]
[1759621303771,0.002,4486.1,4486.0,24.02597635]
[1759621303992,0.002,4486.1,4486.0,52.51764835]
[1759621304805,0.002,4486.1,4486.0,54.02597635]
[1759621305923,0.002,4486.1,4486.0,24.02597635]
[1759621306133,0.002,4486.1,4486.0,54.02597635]
[1759621306922,0.002,4486.5,4486.0,54.02597635]
[1759621306923,0.002,4486.5,4486.4,2.22895863]
[1759621307088,0.002,4486.5,4486.4,37.15824821]
[1759621307290,0.002,4486.5,4486.4,37.24715863]
[1759621307530,0.002,4486.5,4486.4,51.74715863]
[1759621309023,0.002,4486.5,4486.4,21.74715863]
[1759621309229,0.002,4486.5,4486.4,54.02477761]
[1759621315328,0.002,4486.5,4486.4,24.02477761]
[1759621315531,0.002,4486.5,4486.4,54.02477761]
[1759621317861,0.01,4486.9,4486.5,2.4]
[1759621318136,0.01,4486.9,4486.8,2.33995991]
[1759621318327,0.01,4486.9,4486.8,35.81998191]
[1759621318528,0.01,4486.9,4486.8,49.19282091]
[1759621318529,0.4591,4486.9,4486.8,49.19282091]
[1759621319498,0.4591,4486.9,4486.8,21.74695991]
[1759621319714,0.4591,4486.9,4486.8,24.02457889]
[1759621319913,0.4591,4486.9,4486.8,50.52731089]
[1759621320135,0.4591,4486.9,4486.8,50.45545789]
[1759621320340,0.4591,4486.9,4486.8,47.87930389]
[1759621320553,0.4591,4486.9,4486.8,49.61390689]
[1759621320721,0.4591,4486.9,4486.8,49.32523789]
[1759621321053,0.4591,4486.9,4486.8,48.37630689]
[1759621321616,0.4591,4486.9,4486.8,48.96829989]
[1759621321817,0.4591,4486.9,4486.8,44.98001098]
[1759621322020,0.4591,4486.9,4486.8,28.29241598]
[1759621322252,0.4591,4486.9,4486.8,17.0112]
[1759621322415,0.9182,4486.9,4486.8,5.0182]
[1759621322901,0.9182,4486.9,4486.8,2.6182]
[1759621323218,0.9182,4486.9,4486.8,5.0182]
[1759621326037,3.14691024,4486.9,4486.8,5.0182]
[1759621328147,3.14891024,4486.9,4486.8,5.0182]
[1759621328559,3.68705763,4486.9,4486.8,2.5112]
[1759621328868,3.14891024,4486.9,4486.8,5.0182]
[1759621344617,3.14891024,4486.9,4486.8,2.6182]
[1759621362179,2.69981024,4486.9,4486.8,2.6182]
[1759621363329,0.4711,4486.9,4486.8,2.6182]
[1759621363530,0.4711,4486.9,4486.8,2.90511]
[1759621363759,0.4711,4486.9,4486.8,5.30511]
[1759621363974,0.012,4486.9,4486.8,5.55501]
[1759621366045,2.24071024,4486.9,4486.8,5.30511]
[1759621366355,0.012,4486.9,4486.8,5.30511]
[1759621366864,2.24071024,4486.9,4486.8,2.5112]
[1759621367066,3.37965511,4486.9,4486.8,5.0182]
[1759621368149,2.90955511,4486.9,4486.8,5.0182]
[1759621369245,3.37965511,4486.9,4486.8,5.0182]
[1759621371981,0.68084487,4486.9,4486.8,5.0182]
[1759621376479,0.68084487,4486.9,4486.8,7.13381]
[1759621376680,0.012,4486.9,4486.8,26.307196]
[1759621377858,0.012,4486.9,4486.8,26.057296]
[1759621378060,0.012,4486.9,4486.8,28.53595591]
[1759621378561,0.012,4486.9,4486.8,26.307196]
[1759621380022,0.012,4486.9,4486.8,40.807196]
[1759621380790,0.012,4486.9,4486.8,40.557296]
[1759621381011,0.012,4486.9,4486.8,38.172305]
[1759621381528,0.4503,4486.9,4486.8,9.150234]
[1759621381830,0.4503,4486.9,4486.8,7.173324]
[1759621382126,0.4503,4486.9,4486.8,5.0182]
[1759621382698,0.4503,4486.9,4486.8,7.617871]
[1759621385300,0.9006,4486.9,4486.8,7.617871]
[1759621387326,0.9006,4486.9,4486.8,9.89548998]
[1759621388504,0.4623,4486.9,4486.8,9.89548998]
[1759621389535,0.4623,4486.9,4486.8,7.617871]
[1759621394532,0.4623,4486.9,4486.8,26.866674]
[1759621394737,0.4623,4486.9,4486.8,26.782993]
[1759621395629,0.4623,4486.9,4486.8,41.900312]
[1759621396035,0.4623,4486.9,4486.8,43.10158806]
[1759621396232,0.4623,4486.9,4486.8,45.37920704]
[1759621396423,0.012,4486.9,4486.8,45.37920704]
[1759621396617,0.012,4486.9,4486.8,45.44677198]
[1759621397442,0.012,4486.9,4486.8,30.94677198]
[1759621397638,0.012,4486.9,4486.8,30.69687198]
[1759621398022,0.012,4486.9,4486.8,30.04273098]
[1759621398734,0.012,4486.9,4486.8,29.98906098]
[1759621399658,0.012,4486.9,4486.8,32.49943289]
[1759621400635,0.012,4486.9,4486.8,34.60786689]
[1759621401046,0.012,4486.9,4486.8,33.85786689]
[1759621401433,0.012,4486.9,4486.8,48.35786689]
[1759621401638,0.012,4486.9,4486.8,48.30786689]
[1759621402661,0.012,4486.9,4486.8,49.31786689]
[1759621403261,0.012,4486.9,4486.8,48.30786689]
[1759621403636,0.012,4486.9,4486.8,50.16576489]
[1759621404760,0.012,4486.9,4486.8,50.18126489]
[1759621405745,0.012,4486.9,4486.8,49.87116489]
[1759621406146,0.012,4486.9,4486.8,48.91434389]
[1759621406678,0.012,4486.9,4486.8,50.76383489]
[1759621407775,0.012,4486.9,4486.8,50.75383489]
[1759621408776,0.012,4486.9,4486.8,54.02457889]
[1759621411781,0.012,4486.9,4486.8,24.02457889]
[1759621412280,0.012,4486.9,4486.8,54.02457889]
[1759621412788,0.012,4486.9,4486.8,24.02457889]
[1759621413150,0.012,4486.9,4486.8,54.02457889]
[1759621414487,0.012,4486.9,4486.8,53.63972989]
[1759621415890,0.012,4486.9,4486.8,54.02457889]
[1759621416895,0.012,4486.9,4486.8,24.02457889]
[1759621417389,0.012,4486.9,4486.8,54.02457889]
[1759621417886,0.012,4486.9,4486.8,48.84219889]
[1759621419095,0.012,4486.9,4486.8,50.23219889]
[1759621421197,0.012,4486.9,4486.8,51.34546289]
[1759621421996,0.012,4486.9,4486.8,49.86187589]
[1759621422178,0.012,4486.9,4486.8,24.02457889]
[1759621422592,0.012,4486.9,4486.8,48.64343889]
[1759621423392,0.012,4486.9,4486.8,48.68183889]
[1759621424086,0.4699,4486.9,4486.8,39.63482898]
[1759621424253,0.4699,4486.9,4486.8,39.49440998]
[1759621425488,0.4699,4486.9,4486.8,41.01920998]
[1759621426284,0.4699,4486.9,4486.8,41.63845298]
[1759621426658,0.4699,4486.9,4486.8,41.01920998]
[1759621427472,0.4699,4486.9,4486.8,41.93469998]
[1759621428160,0.4699,4486.9,4486.8,44.16345989]
[1759621428384,0.4699,4486.9,4486.8,45.84398089]
[1759621428661,0.012,4486.9,4486.8,45.84398089]
[1759621429578,0.012,4486.9,4486.8,48.07755689]
[1759621429902,0.012,4486.9,4486.8,47.79026589]
[1759621430701,0.012,4486.9,4486.8,47.71507189]
[1759621431802,0.012,4486.9,4486.8,48.86296489]
[1759621432406,0.012,4486.9,4486.8,46.68173589]
[1759621432815,0.012,4486.9,4486.8,46.67802889]
[1759621433792,0.012,4486.9,4486.8,46.72802889]
[1759621434875,0.012,4486.9,4486.8,47.01357189]
[1759621435907,0.012,4486.9,4486.8,46.68092889]
[1759621436780,0.012,4486.9,4486.8,24.02457889]
[1759621437005,0.012,4486.9,4486.8,47.01054889]
[1759621437907,0.012,4486.9,4486.8,47.05754889]
[1759621438684,0.012,4486.9,4486.8,46.77302889]
[1759621438895,0.012,4486.9,4486.8,49.52256689]
[1759621440006,0.012,4486.9,4486.8,50.92747989]
[1759621440980,0.012,4486.9,4486.8,54.02457889]
[1759621445799,0.012,4486.9,4486.8,54.27447889]
[1759621447193,0.012,4486.9,4486.8,54.02457889]
[1759621457359,0.012,4486.9,4486.8,24.02457889]
[1759621457731,0.012,4486.9,4486.8,54.02457889]
[1759621461429,0.012,4486.9,4486.8,24.02457889]
[1759621461933,0.012,4486.9,4486.8,54.02457889]
[1759621463765,0.012,4486.9,4486.8,24.02457889]
[1759621464171,0.012,4486.9,4486.8,54.02457889]
[1759621465448,0.10115844,4486.9,4486.8,54.02457889]
[1759621466569,0.57095844,4486.9,4486.8,51.27500589]
[1759621466769,0.57095844,4486.9,4486.8,54.02357889]
[1759621466945,0.57095844,4486.9,4486.8,53.30935689]
[1759621467360,0.57095844,4486.9,4486.8,45.44063389]
[1759621467565,0.57095844,4486.9,4486.8,36.49631391]
[1759621467749,0.57095844,4486.9,4486.8,21.74595991]
[1759621467948,0.57095844,4486.9,4486.8,36.77727591]
[1759621468172,0.57095844,4486.9,4486.8,36.45327591]
[1759621468837,0.57095844,4486.9,4486.8,40.38885291]
[1759621469037,0.57095844,4486.9,4486.8,42.32010689]
[1759621469974,0.57095844,4486.9,4486.8,48.24006589]
[1759621470346,0.57095844,4486.9,4486.8,47.12606589]
[1759621470871,0.57095844,4486.9,4486.8,24.02357889]
[1759621471372,0.57095844,4486.9,4486.8,51.41553889]
[1759621471974,0.57095844,4486.9,4486.8,49.93463089]
[1759621473375,0.57095844,4486.9,4486.8,50.36269689]
[1759621475291,0.10115844,4486.9,4486.8,50.36269689]
[1759621475462,0.012,4486.9,4486.8,54.02357889]
[1759621477650,0.012,4486.9,4486.8,55.62598605]
[1759621477871,0.012,4486.9,4486.8,44.63039589]
[1759621478069,0.483,4486.9,4486.8,38.06079989]
[1759621478384,0.483,4486.9,4486.8,46.24657289]
[1759621479395,0.483,4486.9,4486.8,51.62357889]
[1759621480385,0.483,4486.9,4486.8,21.62357889]
[1759621480757,0.483,4486.9,4486.8,51.62357889]
[1759621482297,0.012,4486.9,4486.8,54.02357889]
[1759621482449,0.012,4486.9,4486.8,24.02357889]
[1759621482652,0.012,4486.9,4486.8,54.02357889]
[1759621487911,0.012,4486.9,4486.8,24.02357889]
[1759621488125,0.012,4486.9,4486.8,54.02357889]
[1759621491219,0.012,4486.9,4486.8,24.02357889]
[1759621491424,0.012,4486.9,4486.8,54.02357889]
[1759621492217,0.012,4486.9,4486.8,55.62598605]
[1759621492427,0.012,4486.9,4486.8,54.02357889]
[1759621495329,0.012,4486.9,4486.8,24.02357889]
[1759621495647,0.012,4486.9,4486.8,54.02357889]
[1759621500639,0.012,4486.9,4486.8,55.62598605]
[1759621503512,0.012,4486.9,4486.8,54.11273733]
[1759621509668,0.012,4486.9,4486.8,24.11273733]
[1759621510235,0.012,4486.9,4486.8,54.11273733]
[1759621520914,0.012,4486.9,4486.8,24.11273733]
[1759621521377,0.012,4486.9,4486.8,54.11273733]
[1759621523418,0.012,4486.9,4486.8,54.02357889]
[1759621525697,0.002,4487.4,4487.1,2.22858217]
[1759621525921,0.002,4487.4,4487.3,4.73971157]
[1759621526085,0.002,4487.4,4487.3,37.24671157]
[1759621526427,0.002,4487.4,4487.3,51.74671157]
[1759621526578,0.002,4487.4,4487.3,55.62664072]
[1759621527132,0.002,4487.4,4487.3,54.02433055]
[1759621528013,0.002,4487.4,4487.3,24.02433055]
[1759621528221,0.002,4487.4,4487.3,54.02433055]
[1759621530168,0.002,4487.4,4487.3,24.02433055]
[1759621530324,0.002,4487.4,4487.3,54.02433055]
[1759621531652,0.002,4487.4,4487.3,55.62664072]
[1759621532254,0.002,4487.4,4487.3,24.02433055]
[1759621532558,0.4432,4487.4,4487.3,54.02433055]
[1759621533460,0.002,4487.4,4487.3,54.02433055]
[1759621535334,0.002,4487.4,4487.3,24.02433055]
[1759621535557,0.002,4487.4,4487.3,54.02433055]
[1759621537176,0.002,4487.4,4487.3,55.62525645]
[1759621537656,0.002,4487.4,4487.3,54.02433055]
[1759621537967,0.4432,4487.4,4487.3,54.46553055]
[1759621538186,0.4432,4487.4,4487.3,53.07497187]
[1759621538459,0.4432,4487.4,4487.3,53.95727687]
[1759621539558,0.4432,4487.4,4487.3,55.68332187]
[1759621540573,0.4432,4487.4,4487.3,56.06645487]
[1759621541171,0.002,4487.4,4487.3,56.06645487]
[1759621541845,0.002,4487.4,4487.3,43.19491087]
[1759621542051,0.4432,4487.4,4487.3,43.55278655]
[1759621542252,0.4432,4487.4,4487.3,43.64193585]
[1759621542442,0.002,4487.4,4487.3,54.00227985]
[1759621543793,0.002,4487.4,4487.3,55.60320417]
[1759621544198,1e-08,4487.5,4487.4,4.62846191]
[1759621544402,0.002,4487.8,4487.4,4.62846191]
[1759621544403,0.002,4487.8,4487.5,2.2283838]
[1759621544673,0.002,4487.8,4487.7,4.62831294]
[1759621544848,0.002,4487.8,4487.7,51.63631294]
[1759621545173,0.002,4487.8,4487.7,52.84393684]
[1759621546748,0.002,4487.8,4487.7,52.93307462]
[1759621548611,0.002,4487.8,4487.7,22.93307462]
[1759621548789,0.002,4487.8,4487.7,52.93307462]
[1759621549898,0.002,4487.8,4487.7,53.04536976]
[1759621551118,0.4606,4487.8,4487.7,53.04536976]
[1759621551615,0.002,4487.8,4487.7,53.04536976]
[1759621551996,0.002,4487.8,4487.7,53.15656976]
[1759621553218,0.002,4487.8,4487.7,54.7574119]
[1759621553715,0.002,4487.8,4487.7,24.7574119]
[1759621554118,0.002,4487.8,4487.7,54.7574119]
[1759621554320,0.002,4487.8,4487.7,24.7574119]
[1759621554486,0.002,4487.8,4487.7,54.7574119]
[1759621555817,0.002,4487.8,4487.7,52.53798278]
[1759621556048,0.4606,4487.8,4487.7,53.44514064]
[1759621556227,0.4606,4487.8,4487.7,55.04598278]
[1759621556431,0.4606,4487.8,4487.7,53.44514064]
[1759621557621,0.4606,4487.8,4487.7,55.04598278]
[1759621557822,0.4606,4487.8,4487.7,53.44514064]
[1759621558908,0.4606,4487.8,4487.7,55.04598278]
[1759621559354,0.4606,4487.8,4487.7,53.44514064]
[1759621559677,0.002,4487.8,4487.7,53.44514064]
[1759621560230,0.002,4487.8,4487.7,55.04598278]
[1759621560446,0.002,4487.8,4487.7,52.53798278]
[1759621560618,0.4606,4487.8,4487.7,17.21263292]
[1759621560823,0.4606,4487.8,4487.7,21.95892414]
[1759621561161,0.4606,4487.8,4487.7,14.6112]
[1759621561341,2.68886329,4487.8,4487.7,2.6222]
[1759621561532,0.9212,4487.8,4487.7,2.6222]
[1759621563065,0.9212,4487.8,4487.7,15.059859]
[1759621563771,0.9212,4487.8,4487.7,10.773324]
[1759621563932,0.9212,4487.8,4487.7,10.896713]
[1759621564871,0.9212,4487.8,4487.7,11.216713]
[1759621565849,0.9212,4487.8,4487.7,12.841166]
[1759621566950,0.9212,4487.8,4487.7,13.135991]
[1759621567150,0.9212,4487.8,4487.7,12.820618]
[1759621567954,0.9212,4487.8,4487.7,13.092826]
[1759621568152,0.9212,4487.8,4487.7,12.783473]
[1759621569059,0.9212,4487.8,4487.7,10.879473]
[1759621569260,0.9212,4487.8,4487.7,5.0222]
[1759621569637,0.7712,4487.8,4487.7,5.0222]
[1759621570974,3.30060561,4487.8,4487.7,5.0222]
[1759621573331,2.99946329,4487.8,4487.7,5.0222]
[1759621574629,2.99946329,4487.8,4487.7,4.911]
[1759621580370,3.00146329,4487.8,4487.7,4.911]
[1759621584176,2.22836259,4487.6,4487.5,0.001]
[1759621584381,2.22836259,4487.6,4487.5,4.912]
[1759621584688,2.68396259,4487.6,4487.5,4.912]
[1759621584856,3.35270905,4487.6,4487.5,4.912]
[1759621585458,2.68396259,4487.6,4487.5,4.912]
[1759621585841,2.68396259,4487.6,4487.5,0.001]
[1759621586046,3.17658518,4487.6,4487.5,2.511]
[1759621586270,3.28778518,4487.6,4487.5,2.511]
[1759621587258,2.83218518,4487.6,4487.5,2.511]
[1759621587463,3.28778518,4487.6,4487.5,2.511]
[1759621589703,2.83218518,4487.6,4487.5,2.511]
[1759621590104,3.28778518,4487.6,4487.5,2.511]
[1759621594604,3.28778518,4487.6,4487.5,0.001]